bitfinex-derivatives/quotes_ETHF0:USTF0_20260207
["timestamp","ask_amount","ask_price","bid_price","bid_amount"]
[1770490633990,0.56828869,2096.5,2095.3,0.54060318]
[1770490638299,0.56828869,2096.4,2095.3,0.54060318]
[1770490638501,0.56828869,2096.2,2095.1,0.54060318]
[1770490638707,0.56828869,2096.2,2094.9,0.5443424]
[1770490640989,0.23872,2096.3,2094.9,0.5443424]
[1770490641194,7.07544089,2096.9,2095.5,0.54060318]
[1770490641195,0.56828869,2096.7,2095.5,0.54060318]
[1770490641401,0.56828869,2096.5,2095.0,0.54060318]
[1770490643290,0.56828869,2096.4,2095.0,0.54060318]
[1770490643496,0.56828869,2096.4,2095.1,0.54060318]
[1770490643694,0.56828869,2096.6,2095.5,0.54060318]
[1770490649504,0.56828869,2096.6,2095.6,0.54060318]
[1770490650207,0.0033758,2097.1,2095.8,0.54060318]
[1770490650398,0.56828869,2097.0,2095.8,0.54060318]
[1770490651206,0.56828869,2097.0,2095.9,0.54060318]
[1770490651410,0.56828869,2097.0,2096.0,0.54060318]
[1770490652509,7.07544089,2097.3,2096.2,0.54060318]
[1770490652809,0.56828869,2097.7,2096.5,0.54060318]
[1770490653203,0.56828869,2097.7,2096.6,0.54060318]
[1770490653718,0.57440218,2097.7,2096.6,0.54677293]
[1770490654104,0.00611349,2097.7,2096.9,0.54060318]
[1770490654309,0.56828869,2098.2,2096.9,0.54060318]
[1770490655213,0.57335949,2098.2,2096.9,0.54060318]
[1770490655412,0.57335949,2098.2,2097.0,0.52494459]
[1770490657505,0.57335949,2098.2,2096.6,2.74814399]
[1770490657813,0.57335949,2098.2,2096.6,0.53111434]
[1770490660613,0.54028292,2098.1,2096.6,0.53111434]
[1770490662314,0.54028292,2097.9,2096.6,0.53111434]
[1770490662514,0.54028292,2097.8,2096.6,0.53111434]
[1770490665115,0.54535372,2098.2,2096.7,0.52494459]
[1770490666009,0.54028292,2097.8,2096.6,0.53111434]
[1770490667011,0.77880292,2098.1,2096.6,0.53111434]
[1770490667219,0.54028292,2098.0,2096.6,0.53111434]
[1770490669616,0.54028292,2097.8,2096.6,0.53111434]
[1770490669817,0.54028292,2097.5,2096.6,0.53111434]
[1770490670213,0.54028292,2097.5,2096.6,0.00616975]
[1770490671720,0.54028292,2097.5,2096.6,0.53111434]
[1770490673119,0.54028292,2097.5,2096.6,0.00616975]
[1770490673713,0.54028292,2097.5,2096.6,0.53111434]
[1770490674122,0.54028292,2097.5,2096.6,0.00616975]
[1770490674516,0.23858,2097.6,2096.1,0.52494459]
[1770490674517,0.54028292,2097.3,2096.1,0.52494459]
[1770490675721,0.54028292,2097.3,2096.1,0.52832842]
[1770490676119,0.54028292,2097.5,2096.2,0.52494459]
[1770490676318,0.54028292,2097.4,2096.2,0.52494459]
[1770490676723,0.54028292,2097.3,2096.2,0.52494459]
[1770490677018,0.54028292,2097.0,2096.1,0.00338383]
[1770490677219,0.54028292,2097.0,2095.8,0.52221493]
[1770490678123,0.54028292,2096.9,2095.8,0.52798835]
[1770490679920,0.54028292,2096.9,2095.8,0.00577342]
[1770490680119,0.54028292,2096.9,2095.8,0.53071801]
[1770490681318,5.31528292,2096.8,2095.8,0.00577342]
[1770490681519,0.54028292,2096.7,2095.8,0.00577342]
[1770490681825,0.54028292,2096.6,2095.2,0.52494459]
[1770490682925,0.54028292,2096.6,2095.2,0.53038436]
[1770490683320,0.54028292,2096.5,2095.2,0.53038436]
[1770490683826,0.54028292,2096.4,2095.2,0.00543977]
[1770490684520,0.54028292,2096.4,2095.2,0.53038436]
[1770490689321,0.00555331,2096.7,2095.4,0.5306834]
[1770490689726,0.5486325,2096.7,2095.5,0.5306834]
[1770490691022,0.00555331,2096.7,2095.5,0.5306834]
[1770490691243,7.31400089,2097.7,2095.8,0.56694976]
[1770490691423,1.53718448,2098.8,2095.8,0.56694976]
[1770490691424,0.57558998,2098.2,2096.3,0.56694976]
[1770490691728,0.57558998,2098.2,2096.6,0.56694976]
[1770490692118,0.57558998,2098.4,2096.7,0.56694976]
[1770490692316,0.58154262,2098.4,2096.7,0.57175351]
[1770490692729,0.58154262,2098.4,2096.9,0.56694976]
[1770490694025,0.58154262,2098.4,2097.0,0.56694976]
[1770490701329,0.57558998,2098.3,2096.7,0.00480375]
[1770490701531,0.23854,2097.9,2096.1,3.32675042]
[1770490701730,0.57558998,2097.8,2095.9,0.56694976]
[1770490702331,5.35058998,2097.4,2095.9,0.56694976]
[1770490702635,0.57558998,2097.3,2095.9,0.57165987]
[1770490702838,0.57558998,2097.8,2096.0,0.56694976]
[1770490705035,0.57558998,2097.8,2096.1,0.56694976]
[1770490705240,0.57558998,2097.8,2096.3,0.56694976]
[1770490707736,0.57558998,2097.8,2096.4,0.56694976]
[1770490709742,0.57558998,2097.8,2096.7,0.56694976]
[1770490709930,0.57558998,2097.8,2096.8,0.56694976]
[1770490710134,0.57558998,2097.8,2096.3,1.49103449]
[1770490710135,0.57558998,2098.3,2097.0,0.56694976]
[1770490712144,0.57558998,2098.1,2097.0,0.56694976]
[1770490714042,0.57558998,2097.8,2097.0,0.56694976]
[1770490715744,0.57558998,2097.8,2096.6,0.52214834]
[1770490718945,0.00595264,2098.4,2097.6,0.52214834]
[1770490719145,0.53440847,2098.7,2097.7,0.52214834]
[1770490719342,0.53440847,2098.8,2097.9,0.52214834]
[1770490719946,0.53440847,2098.8,2097.7,0.52214834]
[1770490720148,0.53876862,2098.8,2098.0,0.52214834]
[1770490724553,0.53876862,2098.8,2097.9,0.45387399]
[1770490724754,0.53440847,2098.7,2097.6,0.00413075]
[1770490725147,0.53440847,2098.4,2097.6,0.00413075]
[1770490725348,0.53440847,2098.4,2097.3,0.52214834]
[1770490725547,0.53440847,2098.4,2097.3,0.97887717]
[1770490725754,0.53440847,2098.4,2097.4,0.52214834]
[1770490726355,0.53440847,2098.4,2097.4,0.52676598]
[1770490730759,0.53440847,2098.3,2097.4,0.00461764]
[1770490731150,0.53440847,2098.3,2097.4,0.52676598]
[1770490732049,0.53440847,2098.2,2097.4,0.52676598]
[1770490733553,0.53440847,2098.2,2097.4,0.00461764]
[1770490733757,0.53440847,2098.2,2097.4,0.52676598]
[1770490736355,0.53440847,2098.2,2097.4,0.00461764]
[1770490736557,0.53440847,2098.2,2097.4,0.52676598]
[1770490739561,0.53440847,2098.7,2097.4,0.52676598]
[1770490739969,0.53440847,2098.5,2097.4,0.52676598]
[1770490740364,0.53876862,2098.8,2097.4,0.52676598]
[1770490740669,0.53440847,2098.7,2097.4,0.52676598]
[1770490741470,0.53440847,2098.4,2097.4,0.52676598]
[1770490741668,0.00436015,2098.8,2097.4,0.52676598]
[1770490741669,0.53440847,2098.6,2097.4,0.52676598]
[1770490743068,0.53440847,2098.5,2097.4,0.52676598]
[1770490743264,0.53440847,2098.5,2097.3,0.45672883]
[1770490743265,0.53440847,2098.1,2097.2,0.52214834]
[1770490743472,0.53440847,2097.9,2097.2,0.52214834]
[1770490743674,0.53440847,2097.9,2097.2,0.94965013]
[1770490743871,0.53440847,2097.9,2097.2,0.52214834]
[1770490744269,0.53440847,2097.9,2096.6,0.52214834]
[1770490744467,0.53440847,2097.9,2096.6,0.5273209]
[1770490745668,0.53440847,2097.9,2096.7,0.56336264]
[1770490746978,0.56866377,2097.8,2096.7,0.56336264]
[1770490750483,0.56866377,2098.2,2096.9,0.56336264]
[1770490751477,0.56866377,2098.2,2097.0,0.57513022]
[1770490752782,0.00436015,2098.8,2097.9,0.57513022]
[1770490752980,0.57558257,2098.8,2097.9,0.57513022]
[1770490753783,0.00436015,2098.8,2097.9,0.57513022]
[1770490754188,0.57122242,2099.1,2097.9,0.57513022]
[1770490754387,0.57122242,2099.2,2097.9,0.57513022]
[1770490755185,0.57122242,2099.0,2097.8,0.57513022]
[1770490755592,0.57122242,2098.9,2097.8,0.57513022]
[1770490756281,0.57122242,2098.8,2097.3,0.57513022]
[1770490756482,0.57122242,2098.3,2097.0,0.57513022]
[1770490757590,0.57122242,2098.3,2097.2,0.57513022]
[1770490757785,0.57122242,2098.2,2097.2,0.57513022]
[1770490757991,0.57122242,2098.2,2096.8,0.57513022]
[1770490758289,4.775,2098.1,2096.8,0.57513022]
[1770490758495,0.57122242,2098.0,2096.8,0.57513022]
[1770490758787,0.57122242,2097.8,2096.6,0.44384526]
[1770490758993,0.57122242,2097.8,2096.7,0.57513022]
[1770490760695,0.57122242,2097.5,2096.7,0.57513022]
[1770490760895,0.57623971,2097.5,2096.7,0.57513022]
[1770490761297,0.57623971,2097.5,2096.1,2.99854066]
[1770490761298,0.57122242,2097.2,2096.1,0.57513022]
[1770490761691,0.00501729,2097.5,2096.1,0.57513022]
[1770490761899,0.57623971,2097.5,2096.2,0.57513022]
[1770490762197,0.57623971,2097.5,2096.3,0.57513022]
[1770490762998,0.57122242,2097.4,2096.2,0.42353984]
[1770490763198,0.57122242,2097.4,2096.3,0.57513022]
[1770490765400,0.57122242,2097.4,2096.2,0.99867006]
[1770490765600,0.57122242,2097.4,2096.3,0.57513022]
[1770490767496,0.57122242,2097.2,2096.3,0.57513022]
[1770490771606,0.57122242,2097.4,2096.3,0.57513022]
[1770490771899,0.57623971,2097.5,2096.3,0.57513022]
[1770490775703,0.78614871,2097.4,2096.3,0.57513022]
[1770490775896,0.54754871,2097.3,2096.3,0.57513022]
[1770490781007,0.54754871,2097.2,2096.3,0.53634134]
[1770490782108,0.54754871,2097.1,2096.3,0.53634134]
[1770490785601,0.54754871,2096.9,2095.6,0.53634134]
[1770490786305,7.07544089,2097.2,2095.6,0.53634134]
[1770490786306,0.54754871,2097.2,2096.2,0.53634134]
[1770490786608,0.54754871,2097.4,2096.3,0.53634134]
[1770490786805,0.24360729,2097.5,2096.3,0.53634134]
[1770490787106,0.54754871,2097.4,2096.3,0.53634134]
[1770490787507,0.00501729,2097.5,2096.4,0.53634134]
[1770490787698,0.54754871,2097.4,2096.5,0.53634134]
[1770490788610,0.00501729,2097.5,2096.6,0.53634134]
[1770490788807,0.00501729,2097.5,2096.6,3.296142]
[1770490789114,0.00501729,2097.5,2096.7,0.53634134]
[1770490789801,0.552566,2097.5,2096.5,3.296142]
[1770490790005,0.552566,2097.5,2096.5,0.53634134]
[1770490793012,0.552566,2097.5,2096.6,0.53634134]
[1770490801620,0.552566,2097.5,2096.3,0.53634134]
[1770490802117,0.54754871,2097.2,2096.3,0.53634134]
[1770490802318,0.54754871,2097.2,2096.2,0.4322905]
[1770490802514,5.32254871,2097.1,2096.2,0.00430647]
[1770490802722,0.54754871,2096.8,2096.2,1e-08]
[1770490802915,0.54754871,2096.8,2095.7,0.53634134]
[1770490803119,0.54754871,2096.6,2095.5,0.53634134]
[1770490803420,0.54754871,2096.4,2095.3,0.53634134]
[1770490803919,0.54754871,2096.8,2095.3,2.02575745]
[1770490804219,0.54754871,2097.0,2095.5,0.53634134]
[1770490804414,0.54754871,2097.4,2096.0,0.53634134]
[1770490805022,0.54754871,2097.2,2096.0,0.53634134]
[1770490806218,0.54553485,2097.4,2096.0,0.53634134]
[1770490808120,0.54553485,2097.4,2096.1,1.48941611]
[1770490808327,0.54553485,2097.4,2096.2,0.54539772]
[1770490809921,0.54553485,2097.2,2095.9,3.30519838]
[1770490810121,0.54553485,2097.2,2095.9,0.54539772]
[1770490814726,0.54553485,2097.2,2096.0,0.57230504]
[1770490817019,0.54851838,2097.1,2095.8,3.3321057]
[1770490817229,0.54851838,2097.1,2095.8,0.57230504]
[1770490817429,0.54851838,2097.0,2095.8,0.57230504]
[1770490818330,0.54851838,2096.9,2095.8,0.57230504]
[1770490818730,0.54851838,2097.4,2095.8,0.57230504]
[1770490820228,0.54851838,2097.4,2095.9,0.57230504]
[1770490821235,0.54851838,2097.3,2095.9,0.57230504]
[1770490821937,0.54851838,2096.7,2095.4,0.57230504]
[1770490822129,0.54851838,2096.5,2095.4,0.57230504]
[1770490825540,0.54851838,2096.1,2095.3,0.00422854]
[1770490825841,0.54851838,2096.1,2095.3,0.98399518]
[1770490826037,0.54851838,2096.1,2095.3,0.00422854]
[1770490826738,0.54851838,2096.1,2095.3,0.57653358]
[1770490826937,0.54851838,2096.1,2095.4,0.57230504]
[1770490827142,0.54851838,2096.7,2095.4,0.57230504]
[1770490827644,0.78723838,2096.4,2095.3,0.00422854]
[1770490827840,0.54851838,2096.3,2095.3,0.00422854]
[1770490828053,0.54851838,2096.2,2095.3,0.00422854]
[1770490829140,0.78724838,2096.2,2095.3,0.00422854]
[1770490829443,0.54851838,2096.1,2095.3,0.00422854]
[1770490830240,0.54851838,2096.1,2094.9,0.97717489]
[1770490831241,0.54851838,2096.1,2095.0,0.57230504]
[1770490832048,0.54851838,2096.0,2094.9,0.00381556]
[1770490832244,0.54851838,2095.9,2095.0,0.57230504]
[1770490832845,0.54851838,2095.9,2094.9,0.41055012]
[1770490833040,0.54851838,2095.9,2094.9,0.98285516]
[1770490833240,0.54851838,2095.9,2094.9,0.5761206]
[1770490834149,0.54851838,2095.8,2094.9,0.00381556]
[1770490834644,0.54851838,2095.8,2094.9,0.5761206]
[1770490837044,0.2388,2095.6,2094.9,0.00381556]
[1770490837245,0.52259269,2095.5,2094.4,0.54410303]
[1770490837752,0.00583279,2096.0,2094.6,0.54410303]
[1770490837955,0.52842548,2096.0,2094.6,0.54410303]
[1770490838149,0.52842548,2096.0,2094.6,0.54794009]
[1770490838651,0.00583279,2096.0,2094.6,3.31251837]
[1770490838846,0.00583279,2096.0,2094.7,3.30868131]
[1770490839041,0.00583279,2096.0,2094.8,0.54410303]
[1770490839245,0.52842548,2096.0,2094.8,0.54410303]
[1770490839450,0.00583279,2096.0,2094.8,0.54410303]
[1770490840046,0.52842548,2096.0,2094.8,0.54410303]
[1770490840250,0.52842548,2096.0,2094.9,0.54410303]
[1770490840251,0.00583279,2096.0,2094.9,0.54410303]
[1770490841341,0.00583279,2096.0,2094.6,5.72161825]
[1770490841342,0.52259269,2095.9,2094.6,3.00732534]
[1770490841649,0.52259269,2095.9,2094.7,0.54410303]
[1770490846253,0.76136269,2095.9,2094.6,0.00383706]
[1770490846449,0.52259269,2095.7,2094.6,0.00383706]
[1770490846648,0.52259269,2095.7,2094.6,0.54794009]
[1770490848557,0.52259269,2095.7,2094.6,0.00383706]
[1770490848750,0.52259269,2095.7,2094.6,0.54794009]
[1770490849554,0.52259269,2095.7,2094.6,0.00383706]
[1770490849752,0.52259269,2095.7,2094.6,0.54794009]
[1770490852657,0.52259269,2095.6,2094.6,0.54794009]
[1770490853058,5.29759269,2095.6,2094.6,0.00383706]
[1770490853259,0.52259269,2095.4,2094.6,0.00383706]
[1770490854253,0.52259269,2095.3,2094.2,0.54410303]
[1770490854666,0.52259269,2095.1,2094.2,0.54410303]
[1770490854856,0.52259269,2095.1,2093.7,0.54410303]
[1770490855056,0.52259269,2095.1,2093.8,0.54410303]
[1770490855256,0.52259269,2095.1,2093.8,0.54857133]
[1770490857460,11.85044089,2095.5,2093.8,0.54857133]
[1770490857461,7.07544089,2095.5,2093.8,0.54857133]
[1770490857666,0.52259269,2095.5,2094.0,0.54410303]
[1770490859664,0.52259269,2095.3,2094.0,0.54410303]
[1770490859966,0.52259269,2095.2,2094.0,0.54410303]
[1770490860477,0.52259269,2095.1,2094.0,0.54410303]
[1770490861380,0.52259269,2094.9,2093.8,0.54857133]
[1770490862671,1.02528262,2094.9,2093.8,0.54857133]
[1770490862874,8.55724866,2096.1,2094.1,2.7715827]
[1770490862875,0.58530737,2096.0,2094.1,2.7715827]
[1770490863065,0.58530737,2096.0,2094.1,14.5045827]
[1770490863470,0.58530737,2096.0,2094.1,2.7715827]
[1770490863668,0.57947458,2095.9,2094.0,2.7715827]
[1770490863971,0.57947458,2095.8,2093.9,7.16323143]
[1770490864174,0.57947458,2095.8,2093.9,2.7715827]
[1770490864371,0.57947458,2095.7,2093.8,4.41080457]
[1770490864570,0.57947458,2095.7,2093.9,0.00740166]
[1770490864967,0.57577375,2095.4,2093.8,0.0044683]
[1770490865268,0.57577375,2095.2,2093.9,0.00740166]
[1770490867872,4.775,2095.6,2093.9,0.00740166]
[1770490868077,0.57532982,2095.6,2094.1,0.0294908]
[1770490868669,0.57532982,2095.6,2094.2,0.02522669]
[1770490868874,0.57532982,2095.6,2094.4,0.02522669]
[1770490869075,0.57532982,2095.8,2094.4,0.02522669]
[1770490869579,0.57532982,2095.8,2094.5,0.02522669]
[1770490870580,0.57532982,2095.8,2094.2,0.02343362]
[1770490871081,0.57532982,2095.8,2094.3,0.02312717]
[1770490871784,0.58011019,2096.0,2094.7,0.02311707]
[1770490874283,0.58011019,2096.0,2094.5,0.02629291]
[1770490874684,0.58011019,2096.0,2094.6,0.03025807]
[1770490874981,0.58011019,2096.0,2094.7,0.03025807]
[1770490876382,0.58011019,2096.0,2094.6,0.26916807]
[1770490876986,0.58011019,2096.0,2094.6,0.03025807]
[1770490877484,5.35511019,2096.0,2094.6,0.03025807]
[1770490877681,0.5742774,2095.8,2094.4,0.02771007]
[1770490878480,0.5742774,2095.6,2094.0,2.80092083]
[1770490878679,0.5742774,2095.6,2093.9,7.20920146]
[1770490878880,0.5742774,2095.5,2093.9,0.02818175]
[1770490880878,5.3492774,2095.4,2093.9,0.02818175]
[1770490881084,0.5742774,2095.3,2093.9,0.02818175]
[1770490883400,0.5742774,2095.3,2094.0,0.03565847]
[1770490883591,0.5742774,2095.3,2094.3,0.03565847]
[1770490889294,0.00583279,2096.0,2094.9,0.03471249]
[1770490889489,0.5742774,2096.2,2095.4,0.03471249]
[1770490889694,0.5742774,2096.7,2095.4,0.03471249]
[1770490889897,0.5742774,2096.6,2095.0,2.77273908]
[1770490890192,0.5742774,2096.5,2095.0,0.03471249]
[1770490890498,0.57943167,2096.5,2095.0,0.03862912]
[1770490896302,0.57943167,2096.5,2095.0,0.00391663]
[1770490896699,0.57943167,2096.5,2095.0,0.04119594]
[1770490901296,0.56464179,2096.4,2095.0,0.04119594]
[1770490904105,0.80335179,2096.4,2095.0,0.00391663]
[1770490904306,0.56234884,2095.7,2094.2,4.26504859]
[1770490904505,0.5606955,2096.0,2094.7,0.03892948]
[1770490905206,0.5606955,2096.0,2094.7,0.04378107]
[1770490906408,0.5606955,2096.0,2094.8,0.03892948]
[1770490908612,0.5606955,2096.0,2094.9,0.04352319]
[1770490909917,0.5606955,2096.0,2094.7,0.05067374]
[1770490910114,0.5606955,2096.0,2094.8,0.04582215]
[1770490912423,0.5606955,2096.0,2094.7,0.00485159]
[1770490913128,0.55927451,2095.8,2094.7,0.00485159]
[1770490913916,0.55927451,2095.7,2094.7,0.00485159]
[1770490916527,0.55608311,2095.2,2094.0,2.77273908]
[1770490916733,0.55608311,2095.2,2093.7,3.46666976]
[1770490916931,0.55608311,2095.2,2093.8,0.04897286]
[1770490917630,0.55608311,2095.2,2093.8,0.05506045]
[1770490918430,0.55608311,2095.2,2093.9,0.04897286]
[1770490919229,0.55608311,2095.2,2093.8,1.54629765]
[1770490919428,0.55608311,2095.2,2093.9,0.04790055]
[1770490921036,0.55608311,2095.2,2094.0,0.04592338]
[1770490921633,0.55608311,2095.2,2094.3,0.04592338]
[1770490921838,0.55608311,2095.2,2094.1,0.04592338]
[1770490923934,0.55931769,2095.0,2093.8,2.77882667]
[1770490924140,0.55931769,2094.9,2093.8,0.00608759]
[1770490924535,0.79819769,2094.9,2093.8,0.00608759]
[1770490924741,0.55811309,2094.8,2093.8,0.00608759]
[1770490926129,0.80572674,2094.6,2093.2,2.77273908]
[1770490926332,0.56680674,2094.5,2093.2,0.05029941]
[1770490927138,0.56680674,2094.5,2093.2,0.05577635]
[1770490927339,0.56680674,2094.5,2093.2,0.42922184]
[1770490927639,0.56680674,2094.5,2093.3,0.05189016]
[1770490928340,0.56680674,2094.5,2093.5,0.05189016]
[1770490929137,0.56680674,2094.5,2093.4,1.49230951]
[1770490929339,0.56680674,2094.5,2093.2,0.42821666]
[1770490930442,0.56680674,2094.5,2093.3,0.04936459]
[1770490930644,0.56680674,2094.5,2093.5,0.04936459]
[1770490932541,0.56680674,2094.5,2093.2,0.37892243]
[1770490932846,0.56680674,2094.5,2093.2,0.43592883]
[1770490933239,0.56680674,2094.5,2093.2,0.37892243]
[1770490933642,0.56680674,2094.5,2093.2,0.43592883]
[1770490933842,0.56680674,2094.5,2093.3,0.0570064]
[1770490935247,0.56680674,2094.5,2093.2,0.37892243]
[1770490935439,0.56680674,2094.5,2093.2,0.43468861]
[1770490935644,0.56680674,2094.5,2093.3,0.05576618]
[1770490942248,0.56680674,2094.5,2093.2,0.67332949]
[1770490942449,0.56680674,2094.5,2093.2,0.67044284]
[1770490942649,0.57453109,2094.4,2093.2,0.37892243]
[1770490943747,0.57453109,2094.3,2093.2,0.37892243]
[1770490945141,0.57453109,2094.3,2093.3,0.05261018]
[1770490945548,0.57453109,2094.3,2093.2,0.37892243]
[1770490945748,0.57453109,2094.3,2092.7,0.43153261]
[1770490946648,0.57453109,2094.3,2092.7,0.43661587]
[1770490947251,0.57453109,2094.2,2092.7,0.00508326]
[1770490947752,0.57453109,2094.2,2092.7,0.43812891]
[1770490948154,0.57453109,2094.1,2092.7,0.00508326]
[1770490948651,0.57453109,2093.7,2092.7,0.37751939]
[1770490949951,0.57453109,2093.7,2092.7,0.80313778]
[1770490950157,0.57453109,2093.7,2092.8,0.42561839]
[1770490950453,0.57453109,2093.7,2092.7,0.37751939]
[1770490950654,0.57453109,2093.7,2092.7,0.79056633]
[1770490950852,0.57453109,2093.7,2092.7,0.37751939]
[1770490951551,0.57453109,2093.6,2092.4,0.39988179]
[1770490952447,0.57453109,2093.6,2092.4,0.40530552]
[1770490952850,0.57453109,2093.5,2092.4,0.40530552]
[1770490953049,0.57861682,2093.5,2092.4,0.77664535]
[1770490953553,0.57453109,2093.4,2092.0,0.55358403]
[1770490953947,0.57453109,2092.7,2091.7,2.2186155]
[1770490954254,0.57453109,2092.7,2091.1,6.99707381]
[1770490954255,0.57453109,2092.7,2091.0,0.58021402]
[1770490954655,0.57453109,2092.7,2091.1,0.59713815]
[1770490955450,0.57453109,2092.7,2091.2,0.59715016]
[1770490955651,0.57453109,2092.7,2091.3,0.59715016]
[1770490956246,0.57453109,2092.7,2091.4,0.59715016]
[1770490956653,0.23907,2093.3,2091.5,0.59804753]
[1770490957259,0.23907,2093.3,2091.6,0.59804753]
[1770490958357,0.00408573,2093.5,2091.6,0.59804753]
[1770490958956,0.00408573,2093.5,2091.8,0.60367759]
[1770490959557,0.00408573,2093.5,2091.9,0.60367759]
[1770490959758,0.00408573,2093.5,2092.0,0.60367759]
[1770490961356,0.00408573,2093.5,2092.2,0.60450413]
[1770490961656,0.23892,2094.6,2092.3,0.60450413]
[1770490961961,0.23892,2094.6,2092.4,0.60450413]
[1770490962459,0.24312717,2094.6,2092.4,0.23916]
[1770490962662,0.24312717,2094.6,2092.8,0.60460242]
[1770490962963,0.24312717,2094.6,2092.8,0.60860984]
[1770490964759,0.23896,2094.2,2092.8,0.60860984]
[1770490970158,0.24312717,2094.6,2092.8,0.60860984]
[1770490970362,0.23894,2094.4,2092.8,0.60860984]
[1770490971263,0.23895,2094.3,2092.8,0.60860984]
[1770490971864,0.23897,2094.1,2092.8,0.60860984]
[1770490974174,0.23899,2094.0,2092.8,0.60860984]
[1770490979969,7.13429194,2094.3,2092.8,0.60860984]
[1770490980172,0.23894,2094.4,2092.8,0.60860984]
[1770490981375,0.00420717,2094.6,2092.9,0.61553861]
[1770490981778,0.00420717,2094.6,2092.8,4.4413617]
[1770490981779,7.13429194,2095.2,2093.2,0.61343502]
[1770490982078,11.91429194,2095.4,2093.2,0.61343502]
[1770490982268,0.23892,2094.6,2093.2,0.61343502]
[1770490982868,0.24405395,2094.6,2093.2,0.61343502]
[1770490985077,0.00513395,2094.6,2093.2,0.61343502]
[1770490985584,7.13429194,2095.7,2093.5,0.61924528]
[1770490986077,0.2389,2094.8,2093.2,0.61924528]
[1770490986479,0.24508959,2094.8,2093.4,0.61487351]
[1770490986680,0.24508959,2094.8,2093.5,0.61487351]
[1770490993681,0.00618959,2094.8,2093.5,0.61487351]
[1770490996880,0.00618959,2094.8,2093.5,5.04535333]
[1770490997085,0.00618959,2094.8,2093.5,0.61487351]
[1770491000987,0.00618959,2094.8,2093.6,0.61842687]
[1770491001891,0.00618959,2094.8,2093.7,0.61842687]
[1770491002386,0.00618959,2094.8,2093.9,0.61842687]
[1770491005993,0.00618959,2094.8,2094.0,0.61660048]
[1770491007090,0.00618959,2094.8,2093.5,0.61752635]
[1770491009992,7.37310194,2095.6,2094.1,0.61509186]
[1770491010192,0.23881,2095.6,2094.2,0.61509186]
[1770491010392,7.37310194,2095.6,2094.2,0.61509186]
[1770491011095,7.37701151,2095.6,2094.2,0.61509186]
[1770491012190,0.24271957,2095.6,2094.2,0.61509186]
[1770491012389,0.24271957,2095.6,2094.3,0.61432406]
[1770491012594,0.24271957,2095.6,2094.3,0.61779826]
[1770491013799,7.37701151,2095.6,2094.3,0.61779826]
[1770491014895,0.24271957,2095.6,2094.3,0.61779826]
[1770491015900,0.00390957,2095.6,2094.5,3.41845499]
[1770491016093,0.00390957,2095.6,2094.6,0.61514044]
[1770491016495,7.37302194,2096.2,2094.7,0.61514044]
[1770491017296,8.56115033,2096.6,2095.7,0.55237772]
[1770491017491,14.477997,2098.3,2096.5,0.55237772]
[1770491017694,0.23844,2098.8,2097.4,0.55237772]
[1770491018000,0.54716902,2099.1,2097.4,0.55237772]
[1770491018297,0.54716902,2099.0,2097.4,0.55237772]
[1770491018494,0.78561902,2098.7,2097.4,0.00498935]
[1770491018691,0.51595848,2098.5,2097.4,0.55736707]
[1770491020001,0.51595848,2098.5,2097.4,0.00498935]
[1770491020503,0.51595848,2098.5,2097.4,0.55736707]
[1770491021094,0.46121892,2098.4,2097.4,0.00498935]
[1770491021295,0.45622957,2098.1,2096.4,0.55237772]
[1770491021500,0.45622957,2097.9,2096.4,0.55237772]
[1770491021702,0.45622957,2097.8,2096.4,0.55237772]
[1770491022397,0.45622957,2097.8,2096.4,0.55741401]
[1770491023102,1.49343819,2098.5,2096.4,0.55741401]
[1770491023302,0.48769137,2098.0,2096.4,0.55741401]
[1770491024096,0.48769137,2097.9,2096.4,0.55741401]
[1770491024501,0.52901384,2097.8,2096.4,0.55741401]
[1770491025893,0.52901384,2097.8,2096.4,0.00503629]
[1770491026101,0.52397755,2097.2,2095.2,0.55237772]
[1770491026701,0.52397755,2097.2,2095.3,0.55237772]
[1770491027204,0.52960191,2097.2,2095.3,0.55667133]
[1770491028101,0.51348691,2096.3,2095.3,0.00429361]
[1770491028303,0.51348691,2096.3,2094.6,0.55237772]
[1770491028700,0.54650314,2095.9,2094.4,0.55237772]
[1770491029306,0.54650314,2095.9,2094.4,0.55822205]
[1770491029502,0.54650314,2095.6,2094.4,0.00584433]
[1770491029700,0.54650314,2095.4,2094.4,0.00584433]
[1770491030497,0.5518053,2095.1,2094.4,4.33e-06]
[1770491033701,0.5518053,2095.1,2093.4,0.55237772]
[1770491033908,0.53855272,2094.7,2093.1,0.55237772]
[1770491034110,0.23894,2094.4,2093.1,0.55237772]
[1770491034309,0.53855272,2094.3,2093.1,0.55237772]
[1770491034810,0.53855272,2094.3,2093.1,0.55573167]
[1770491038207,0.54115252,2095.0,2093.1,0.55573167]
[1770491038606,0.54115252,2095.0,2093.5,0.55237772]
[1770491039313,0.53877562,2094.9,2093.5,0.55237772]
[1770491039707,0.53877562,2094.6,2093.2,0.55237772]
[1770491040213,0.2389,2094.7,2093.2,0.55237772]
[1770491040420,0.77767562,2094.7,2093.2,0.55237772]
[1770491040611,0.53800505,2094.6,2093.2,0.55237772]
[1770491040817,0.53800505,2095.3,2093.2,0.55237772]
[1770491041021,0.53800505,2095.2,2093.2,0.55237772]
[1770491041218,0.53800505,2095.1,2093.2,0.55237772]
[1770491043920,0.53656781,2095.0,2093.2,0.55237772]
[1770491045613,0.53727684,2094.9,2093.2,0.55237772]
[1770491046521,0.53775094,2094.5,2093.2,0.55237772]
[1770491046724,0.53775094,2094.4,2093.2,0.55237772]
[1770491046919,0.53775094,2093.8,2093.1,0.00335395]
[1770491047121,0.54267124,2093.8,2093.1,0.00335395]
[1770491048922,0.78168124,2093.8,2093.1,0.00335395]
[1770491049129,0.53553974,2093.7,2092.7,0.52852213]
[1770491049523,0.23904,2093.5,2092.5,0.52852213]
[1770491049729,0.53553974,2093.4,2092.3,0.52852213]
[1770491050025,0.53553974,2093.4,2092.3,0.53250175]
[1770491050218,0.53553974,2093.3,2092.3,0.53250175]
[1770491054031,0.53525094,2093.3,2092.3,0.53250175]
[1770491055129,0.0049203,2093.8,2092.3,0.53250175]
[1770491055334,0.540987,2094.3,2092.7,0.55668727]
[1770491055634,0.540987,2094.0,2092.7,0.55668727]
[1770491056227,0.54557983,2094.0,2092.7,0.55668727]
[1770491057033,0.00459283,2094.0,2092.7,0.55668727]
[1770491058136,0.00459283,2094.0,2092.8,3.3422344]
[1770491058328,0.00459283,2094.0,2092.9,0.55668727]
[1770491059132,0.78352634,2094.6,2093.0,0.55668727]
[1770491059330,0.78352634,2094.6,2093.1,0.55668727]
[1770491059531,0.54919917,2094.5,2093.1,0.55668727]
[1770491059731,0.54919917,2094.7,2093.2,0.55668727]
[1770491060234,0.55476267,2094.7,2093.3,0.55668727]
[1770491060831,0.0055635,2094.7,2093.3,0.55668727]
[1770491061033,0.0055635,2094.7,2093.3,3.3422344]
[1770491061238,0.55355079,2094.7,2093.5,0.55668727]
[1770491062230,0.0055635,2094.7,2093.6,0.55668727]
[1770491063835,0.55071349,2094.7,2093.6,0.55668727]
[1770491065537,0.54677155,2094.6,2093.6,0.55668727]
[1770491067041,0.54677155,2094.6,2093.4,0.55668727]
[1770491071441,0.54677581,2094.5,2093.4,0.55668727]